Workbook

Sheet Sheet1
D1: Household disposable income by MSOA in Manchester and London (£/week, after housing costs)
E3: 1 | G3: 2 | I3: 3 | N3: 4 | R3: 5
D4: Mean income | E4: =V6 -> 399.7766185 | G4: =AQ6 -> 539.2370295 | I4: =AF6 -> 502.9290519 | M4: Mean income | N4: =AC6 -> 539.7668058 | R4: =AI6 -> 539.3749547
D5: Median | E5: =V7 -> 392.105 | G5: =AQ7 -> 520.49 | I5: =AF7 -> 480.32 | M5: Median | N5: =AC7 -> 525.827475 | R5: =AI7 -> 521.7 | Z5: 1.35 | AC5: 0.817 | AL5: 1.35
D6: St. Dev | E6: =V8 -> 83.61371752 | G6: =AQ8 -> 132.3908147 | I6: =AF8 -> 136.1233191 | M6: St. Dev | N6: 151.9261247 | R6: 137.7439705 | U6: Mean | V6: =AVERAGE(U11:U2006) -> 399.7766185 | Y6: Mean | Z6: =AVERAGE(Y11:Y2006) -> 539.698435 | AB6: Mean | AC6: =AVERAGE(AB11:AB2006) -> 539.7668058 | AE6: Mean | AF6: =AVERAGE(AF11:AF2006) -> 502.9290519 | AH6: Mean | AI6: =AVERAGE(AI11:AI2006) -> 539.3749547 | AK6: Mean | AL6: =AVERAGE(AL11:AL2006) -> 539.3571546 | AP6: Mean | AQ6: =AVERAGE(AP11:AP2006) -> 539.2370295
D7: Gini | E7: 0.1191124338 | G7: 0.1387217434 | I7: 0.1517159094 | M7: Gini | N7: 0.1602962059 | R7: 0.1444445154 | U7: Median | V7: =MEDIAN(U11:U2006) -> 392.105 | Y7: Median | Z7: =MEDIAN(Y11:Y2006) -> 529.34175 | AB7: Median | AC7: =MEDIAN(AB11:AB2006) -> 525.827475 | AE7: Median | AF7: =MEDIAN(AF11:AF2006) -> 480.32 | AH7: Median | AI7: =MEDIAN(AI11:AI2006) -> 521.7 | AK7: Median | AL7: =MEDIAN(AL11:AL2006) -> 522.774 | AP7: Median | AQ7: =MEDIAN(AP11:AP2006) -> 520.49
U8: StDev | V8: =_xlfn.STDEV.P(U11:U5006) -> 83.61371752 | Y8: StDev | Z8: =_xlfn.STDEV.P(Y11:Y5006) -> 112.8785186 | AB8: StDev | AC8: =_xlfn.STDEV.P(AB11:AB5006) -> 151.9261247 | AE8: StDev | AF8: =_xlfn.STDEV.P(AF11:AF5006) -> 136.1233191 | AH8: StDev | AI8: =_xlfn.STDEV.P(AI11:AI5006) -> 137.7439705 | AK8: StDev | AL8: =_xlfn.STDEV.P(AL11:AL5006) -> 127.5986391 | AP8: StDev | AQ8: =_xlfn.STDEV.P(AP11:AP5006) -> 132.3908147
E9: Manchester | G9: London | I9: Manchester & London | K9: Imaginary Manchester 1 | N9: Imaginary Manchester | P9: London & Manchester 1 | R9: London & imaginary Manchester | U9: Gini | V9: =GINICOEFA(U11:U356) -> 0.1191124338 | Y9: Gini | Z9: =GINICOEFA(Y11:Y356) -> 0.1191124338 | AB9: Gini | AC9: =GINICOEFA(AB11:AB356) -> 0.1602962059 | AE9: Gini | AF9: =GINICOEFA(AF11:AF1339) -> 0.1517159094 | AH9: Gini | AI9: =GINICOEFA(AI11:AI1339) -> 0.1444445154 | AK9: Gini | AL9: =GINICOEFA(AL11:AL1339) -> 0.1337708742 | AP9: Gini | AQ9: =GINICOEFA(AP11:AP993) -> 0.1387217434
E10: Today | G10: Today | I10: Today | K10: 35% richer. No more unequal | N10: 35% richer but much more unequal | U10: Net income after housing costs | V10: Local authority name | Y10: 35% richer Manchester | AB10: 35% richer and more unequal Manchester | AF10: London & Manchester | AI10: London & 35% richer Manchester | AL10: London & 35% richer Manchester | AP10: Net income after housing costs | AQ10: Region name
A11: 150 | B11: 200 | D11: £150-£200 | E11: =COUNTIFS(U:U,"<"&B11,U:U, ">"&A11) -> 0 | G11: =COUNTIFS(AP:AP,"<"&B11,AP:AP, ">"&A11) -> 0 | I11: =G11+E11 -> 0 | K11: =COUNTIFS(Y:Y,"<"&B11,Y:Y, ">"&A11) -> 0 | M11: £150-£200 | N11: =COUNTIFS(AB:AB,"<"&B11,AB:AB, ">"&A11) -> 0 | P11: =G11+K11 -> 0 | R11: =G11+N11 -> 0 | U11: 228.43 | V11: Oldham | X11: 0 | Y11: =U11*Z$5 -> 308.3805 | AB11: =U11*(1+(U11-$U$11)/U11*$AC$5) -> 228.43 | AF11: 634.51 | AI11: =AF11 -> 634.51 | AL11: =AF11 -> 634.51 | AP11: 634.51 | AQ11: London
A12: 200 | B12: 250 | D12: £200-£250 | E12: =COUNTIFS(U:U,"<"&B12,U:U, ">"&A12) -> 4 | G12: =COUNTIFS(AP:AP,"<"&B12,AP:AP, ">"&A12) -> 0 | I12: =G12+E12 -> 4 | K12: =COUNTIFS(Y:Y,"<"&B12,Y:Y, ">"&A12) -> 0 | M12: £200-£250 | N12: =COUNTIFS(AB:AB,"<"&B12,AB:AB, ">"&A12) -> 2 | P12: =G12+K12 -> 0 | R12: =G12+N12 -> 2 | U12: 231.49 | V12: Manchester | X12: =X11+1/(COUNT($Y$11:$Y$356)-1) -> 0.002898550725 | Y12: =U12*Z$5 -> 312.5115 | AB12: =U12*(1+(U12-$U$11)/U12*$AC$5) -> 233.99002 | AF12: 879.91 | AI12: =AF12 -> 879.91 | AL12: =AF12 -> 879.91 | AP12: 879.91 | AQ12: London
A13: 250 | B13: 300 | D13: £250-£300 | E13: =COUNTIFS(U:U,"<"&B13,U:U, ">"&A13) -> 36 | G13: =COUNTIFS(AP:AP,"<"&B13,AP:AP, ">"&A13) -> 0 | I13: 36 | K13: =COUNTIFS(Y:Y,"<"&B13,Y:Y, ">"&A13) -> 0 | M13: £250-£300 | N13: =COUNTIFS(AB:AB,"<"&B13,AB:AB, ">"&A13) -> 15 | P13: 0 | R13: 15 | U13: 241.98 | V13: Oldham | X13: =X12+1/(COUNT($Y$11:$Y$356)-1) -> 0.005797101449 | Y13: =U13*Z$5 -> 326.673 | AB13: =U13*(1+(U13-$U$11)/U13*$AC$5) -> 253.05035 | AF13: 640.45 | AI13: 640.45 | AL13: 640.45 | AP13: 640.45 | AQ13: London
A14: 300 | B14: 350 | D14: £300-£350 | E14: =COUNTIFS(U:U,"<"&B14,U:U, ">"&A14) -> 61 | G14: =COUNTIFS(AP:AP,"<"&B14,AP:AP, ">"&A14) -> 35 | I14: 96 | K14: =COUNTIFS(Y:Y,"<"&B14,Y:Y, ">"&A14) -> 9 | M14: £300-£350 | N14: =COUNTIFS(AB:AB,"<"&B14,AB:AB, ">"&A14) -> 19 | P14: 44 | R14: 54 | U14: 247.7 | V14: Manchester | X14: 0.008695652174 | Y14: =U14*Z$5 -> 334.395 | AB14: =U14*(1+(U14-$U$11)/U14*$AC$5) -> 263.44359 | AF14: 772.73 | AI14: 772.73 | AL14: 772.73 | AP14: 772.73 | AQ14: London
A15: 350 | B15: 400 | D15: £350-£400 | E15: =COUNTIFS(U:U,"<"&B15,U:U, ">"&A15) -> 81 | G15: =COUNTIFS(AP:AP,"<"&B15,AP:AP, ">"&A15) -> 119 | I15: 200 | K15: =COUNTIFS(Y:Y,"<"&B15,Y:Y, ">"&A15) -> 28 | M15: £350-£400 | N15: =COUNTIFS(AB:AB,"<"&B15,AB:AB, ">"&A15) -> 27 | P15: 147 | R15: 146 | U15: 256.28 | V15: Rochdale | X15: 0.0115942029 | Y15: =U15*Z$5 -> 345.978 | AB15: =U15*(1+(U15-$U$11)/U15*$AC$5) -> 279.03345 | AF15: 703.52 | AI15: 703.52 | AL15: 703.52 | AP15: 703.52 | AQ15: London
A16: 400 | B16: 450 | D16: £400-£450 | E16: =COUNTIFS(U:U,"<"&B16,U:U, ">"&A16) -> 69 | G16: =COUNTIFS(AP:AP,"<"&B16,AP:AP, ">"&A16) -> 134 | I16: 203 | K16: =COUNTIFS(Y:Y,"<"&B16,Y:Y, ">"&A16) -> 44 | M16: £400-£450 | N16: =COUNTIFS(AB:AB,"<"&B16,AB:AB, ">"&A16) -> 39 | P16: 178 | R16: 173 | U16: 256.47 | V16: Manchester | X16: 0.01449275362 | Y16: =U16*Z$5 -> 346.2345 | AB16: =U16*(1+(U16-$U$11)/U16*$AC$5) -> 279.37868 | AF16: 675.47 | AI16: 675.47 | AL16: 675.47 | AP16: 675.47 | AQ16: London
A17: 450 | B17: 500 | D17: £450-£500 | E17: =COUNTIFS(U:U,"<"&B17,U:U, ">"&A17) -> 49 | G17: =COUNTIFS(AP:AP,"<"&B17,AP:AP, ">"&A17) -> 150 | I17: 199 | K17: =COUNTIFS(Y:Y,"<"&B17,Y:Y, ">"&A17) -> 61 | M17: £450-£500 | N17: =COUNTIFS(AB:AB,"<"&B17,AB:AB, ">"&A17) -> 47 | P17: 211 | R17: 197 | U17: 256.92 | V17: Oldham | X17: 0.01739130435 | Y17: =U17*Z$5 -> 346.842 | AB17: =U17*(1+(U17-$U$11)/U17*$AC$5) -> 280.19633 | AF17: 412.22 | AI17: 412.22 | AL17: 412.22 | AP17: 412.22 | AQ17: London
A18: 500 | B18: 550 | D18: £500-£550 | E18: =COUNTIFS(U:U,"<"&B18,U:U, ">"&A18) -> 32 | G18: =COUNTIFS(AP:AP,"<"&B18,AP:AP, ">"&A18) -> 124 | I18: 156 | K18: =COUNTIFS(Y:Y,"<"&B18,Y:Y, ">"&A18) -> 52 | M18: £500-£550 | N18: =COUNTIFS(AB:AB,"<"&B18,AB:AB, ">"&A18) -> 43 | P18: 176 | R18: 167 | U18: 258.04 | V18: Bolton | X18: 0.02028985507 | Y18: =U18*Z$5 -> 348.354 | AB18: =U18*(1+(U18-$U$11)/U18*$AC$5) -> 282.23137 | AF18: 794.99 | AI18: 794.99 | AL18: 794.99 | AP18: 794.99 | AQ18: London
A19: 550 | B19: 600 | D19: £550-£600 | E19: =COUNTIFS(U:U,"<"&B19,U:U, ">"&A19) -> 8 | G19: =COUNTIFS(AP:AP,"<"&B19,AP:AP, ">"&A19) -> 118 | I19: 126 | K19: =COUNTIFS(Y:Y,"<"&B19,Y:Y, ">"&A19) -> 54 | M19: £550-£600 | N19: =COUNTIFS(AB:AB,"<"&B19,AB:AB, ">"&A19) -> 38 | P19: 172 | R19: 156 | U19: 258.11 | V19: Manchester | X19: 0.0231884058 | Y19: =U19*Z$5 -> 348.4485 | AB19: =U19*(1+(U19-$U$11)/U19*$AC$5) -> 282.35856 | AF19: 532.38 | AI19: 532.38 | AL19: 532.38 | AP19: 532.38 | AQ19: London
A20: 600 | B20: 650 | D20: £600-£650 | E20: =COUNTIFS(U:U,"<"&B20,U:U, ">"&A20) -> 5 | G20: =COUNTIFS(AP:AP,"<"&B20,AP:AP, ">"&A20) -> 99 | I20: 104 | K20: =COUNTIFS(Y:Y,"<"&B20,Y:Y, ">"&A20) -> 38 | M20: £600-£650 | N20: =COUNTIFS(AB:AB,"<"&B20,AB:AB, ">"&A20) -> 32 | P20: 137 | R20: 131 | U20: 260.43 | V20: Oldham | X20: 0.02608695652 | Y20: =U20*Z$5 -> 351.5805 | AB20: =U20*(1+(U20-$U$11)/U20*$AC$5) -> 286.574 | AF20: 680.34 | AI20: 680.34 | AL20: 680.34 | AP20: 680.34 | AQ20: London
A21: 650 | B21: 700 | D21: £650-£700 | E21: =COUNTIFS(U:U,"<"&B21,U:U, ">"&A21) -> 0 | G21: =COUNTIFS(AP:AP,"<"&B21,AP:AP, ">"&A21) -> 80 | I21: 80 | K21: =COUNTIFS(Y:Y,"<"&B21,Y:Y, ">"&A21) -> 23 | M21: £650-£700 | N21: =COUNTIFS(AB:AB,"<"&B21,AB:AB, ">"&A21) -> 28 | P21: 103 | R21: 108 | U21: 261.75 | V21: Manchester | X21: 0.02898550725 | Y21: =U21*Z$5 -> 353.3625 | AB21: =U21*(1+(U21-$U$11)/U21*$AC$5) -> 288.97244 | AF21: 810.98 | AI21: 810.98 | AL21: 810.98 | AP21: 810.98 | AQ21: London
A22: 700 | B22: 750 | D22: £700-£750 | E22: =COUNTIFS(U:U,"<"&B22,U:U, ">"&A22) -> 0 | G22: =COUNTIFS(AP:AP,"<"&B22,AP:AP, ">"&A22) -> 51 | I22: 51 | K22: =COUNTIFS(Y:Y,"<"&B22,Y:Y, ">"&A22) -> 27 | M22: £700-£750 | N22: =COUNTIFS(AB:AB,"<"&B22,AB:AB, ">"&A22) -> 17 | P22: 78 | R22: 68 | U22: 262.83 | V22: Rochdale | X22: 0.03188405797 | Y22: =U22*Z$5 -> 354.8205 | AB22: =U22*(1+(U22-$U$11)/U22*$AC$5) -> 290.9348 | AF22: 476.67 | AI22: 476.67 | AL22: 476.67 | AP22: 476.67 | AQ22: London
A23: 750 | B23: 800 | D23: £750-£800 | E23: =COUNTIFS(U:U,"<"&B23,U:U, ">"&A23) -> 0 | G23: =COUNTIFS(AP:AP,"<"&B23,AP:AP, ">"&A23) -> 30 | I23: 30 | K23: =COUNTIFS(Y:Y,"<"&B23,Y:Y, ">"&A23) -> 4 | M23: £750-£800 | N23: =COUNTIFS(AB:AB,"<"&B23,AB:AB, ">"&A23) -> 23 | P23: 34 | R23: 53 | U23: 263.01 | V23: Manchester | X23: 0.0347826087 | Y23: =U23*Z$5 -> 355.0635 | AB23: =U23*(1+(U23-$U$11)/U23*$AC$5) -> 291.26186 | AF23: 532.02 | AI23: 532.02 | AL23: 532.02 | AP23: 532.02 | AQ23: London
A24: 800 | B24: 850 | D24: £800-£850 | E24: =COUNTIFS(U:U,"<"&B24,U:U, ">"&A24) -> 0 | G24: =COUNTIFS(AP:AP,"<"&B24,AP:AP, ">"&A24) -> 28 | I24: 28 | K24: =COUNTIFS(Y:Y,"<"&B24,Y:Y, ">"&A24) -> 5 | M24: £800-£850 | N24: =COUNTIFS(AB:AB,"<"&B24,AB:AB, ">"&A24) -> 8 | P24: 33 | R24: 36 | U24: 264.01 | V24: Bolton | X24: 0.03768115942 | Y24: =U24*Z$5 -> 356.4135 | AB24: =U24*(1+(U24-$U$11)/U24*$AC$5) -> 293.07886 | AF24: 610.98 | AI24: 610.98 | AL24: 610.98 | AP24: 610.98 | AQ24: London
A25: 850 | B25: 900 | D25: £850-£900 | E25: =COUNTIFS(U:U,"<"&B25,U:U, ">"&A25) -> 0 | G25: =COUNTIFS(AP:AP,"<"&B25,AP:AP, ">"&A25) -> 9 | I25: 9 | K25: =COUNTIFS(Y:Y,"<"&B25,Y:Y, ">"&A25) -> 1 | M25: £850-£900 | N25: =COUNTIFS(AB:AB,"<"&B25,AB:AB, ">"&A25) -> 2 | P25: 10 | R25: 11 | U25: 264.32 | V25: Manchester | X25: 0.04057971014 | Y25: =U25*Z$5 -> 356.832 | AB25: =U25*(1+(U25-$U$11)/U25*$AC$5) -> 293.64213 | AF25: 497.53 | AI25: 497.53 | AL25: 497.53 | AP25: 497.53 | AQ25: London
A26: 900 | B26: 950 | D26: £900-£950 | E26: =COUNTIFS(U:U,"<"&B26,U:U, ">"&A26) -> 0 | G26: =COUNTIFS(AP:AP,"<"&B26,AP:AP, ">"&A26) -> 4 | I26: 4 | K26: =COUNTIFS(Y:Y,"<"&B26,Y:Y, ">"&A26) -> 0 | M26: £900-£950 | N26: =COUNTIFS(AB:AB,"<"&B26,AB:AB, ">"&A26) -> 5 | P26: 4 | R26: 9 | U26: 264.68 | V26: Rochdale | X26: 0.04347826087 | Y26: =U26*Z$5 -> 357.318 | AB26: =U26*(1+(U26-$U$11)/U26*$AC$5) -> 294.29625 | AF26: 794.8 | AI26: 794.8 | AL26: 794.8 | AP26: 794.8 | AQ26: London
A27: 950 | B27: 1000 | D27: £950-£1000 | E27: =COUNTIFS(U:U,"<"&B27,U:U, ">"&A27) -> 0 | G27: =COUNTIFS(AP:AP,"<"&B27,AP:AP, ">"&A27) -> 2 | I27: 2 | K27: =COUNTIFS(Y:Y,"<"&B27,Y:Y, ">"&A27) -> 0 | M27: £950-£1000 | N27: =COUNTIFS(AB:AB,"<"&B27,AB:AB, ">"&A27) -> 1 | P27: 2 | R27: 3 | U27: 267.59 | V27: Manchester | X27: 0.04637681159 | Y27: =U27*Z$5 -> 361.2465 | AB27: =U27*(1+(U27-$U$11)/U27*$AC$5) -> 299.58372 | AF27: 628.27 | AI27: 628.27 | AL27: 628.27 | AP27: 628.27 | AQ27: London
U28: 268.25 | V28: Manchester | X28: 0.04927536232 | Y28: =U28*Z$5 -> 362.1375 | AB28: =U28*(1+(U28-$U$11)/U28*$AC$5) -> 300.78294 | AF28: 628.48 | AI28: 628.48 | AL28: 628.48 | AP28: 628.48 | AQ28: London
U29: 271.31 | V29: Salford | X29: 0.05217391304 | Y29: =U29*Z$5 -> 366.2685 | AB29: =U29*(1+(U29-$U$11)/U29*$AC$5) -> 306.34296 | AF29: 427.61 | AI29: 427.61 | AL29: 427.61 | AP29: 427.61 | AQ29: London
U30: 272.53 | V30: Manchester | X30: 0.05507246377 | Y30: =U30*Z$5 -> 367.9155 | AB30: =U30*(1+(U30-$U$11)/U30*$AC$5) -> 308.5597 | AF30: 426.2 | AI30: 426.2 | AL30: 426.2 | AP30: 426.2 | AQ30: London
E31: =SUM(E11:E27) -> 345 | G31: =SUM(G11:G27) -> 983 | U31: 272.81 | V31: Oldham | X31: 0.05797101449 | Y31: =U31*Z$5 -> 368.2935 | AB31: =U31*(1+(U31-$U$11)/U31*$AC$5) -> 309.06846 | AF31: 524.93 | AI31: 524.93 | AL31: 524.93 | AP31: 524.93 | AQ31: London
U32: 273.12 | V32: Stockport | X32: 0.06086956522 | Y32: =U32*Z$5 -> 368.712 | AB32: =U32*(1+(U32-$U$11)/U32*$AC$5) -> 309.63173 | AF32: 348.82 | AI32: 348.82 | AL32: 348.82 | AP32: 348.82 | AQ32: London
U33: 275.48 | V33: Manchester | X33: 0.06376811594 | Y33: =U33*Z$5 -> 371.898 | AB33: =U33*(1+(U33-$U$11)/U33*$AC$5) -> 313.91985 | AF33: 358.95 | AI33: 358.95 | AL33: 358.95 | AP33: 358.95 | AQ33: London
U34: 276.44 | V34: Bolton | X34: 0.06666666667 | Y34: =U34*Z$5 -> 373.194 | AB34: =U34*(1+(U34-$U$11)/U34*$AC$5) -> 315.66417 | AF34: 368.04 | AI34: 368.04 | AL34: 368.04 | AP34: 368.04 | AQ34: London
U35: 278.4 | V35: Manchester | X35: 0.06956521739 | Y35: =U35*Z$5 -> 375.84 | AB35: =U35*(1+(U35-$U$11)/U35*$AC$5) -> 319.22549 | AF35: 421.24 | AI35: 421.24 | AL35: 421.24 | AP35: 421.24 | AQ35: London
U36: 280.34 | V36: Tameside | X36: 0.07246376812 | Y36: =U36*Z$5 -> 378.459 | AB36: =U36*(1+(U36-$U$11)/U36*$AC$5) -> 322.75047 | AF36: 494 | AI36: 494 | AL36: 494 | AP36: 494 | AQ36: London
U37: 280.57 | V37: Salford | X37: 0.07536231884 | Y37: =U37*Z$5 -> 378.7695 | AB37: =U37*(1+(U37-$U$11)/U37*$AC$5) -> 323.16838 | AF37: 484.93 | AI37: 484.93 | AL37: 484.93 | AP37: 484.93 | AQ37: London
U38: 280.74 | V38: Wigan | X38: 0.07826086957 | Y38: =U38*Z$5 -> 378.999 | AB38: =U38*(1+(U38-$U$11)/U38*$AC$5) -> 323.47727 | AF38: 551.96 | AI38: 551.96 | AL38: 551.96 | AP38: 551.96 | AQ38: London
U39: 284.44 | V39: Manchester | X39: 0.08115942029 | Y39: =U39*Z$5 -> 383.994 | AB39: =U39*(1+(U39-$U$11)/U39*$AC$5) -> 330.20017 | AF39: 805.07 | AI39: 805.07 | AL39: 805.07 | AP39: 805.07 | AQ39: London
U40: 286.22 | V40: Bolton | X40: 0.08405797101 | Y40: =U40*Z$5 -> 386.397 | AB40: =U40*(1+(U40-$U$11)/U40*$AC$5) -> 333.43443 | AF40: 415.62 | AI40: 415.62 | AL40: 415.62 | AP40: 415.62 | AQ40: London
U41: 287.15 | V41: Salford | X41: 0.08695652174 | Y41: =U41*Z$5 -> 387.6525 | AB41: =U41*(1+(U41-$U$11)/U41*$AC$5) -> 335.12424 | AF41: 352.73 | AI41: 352.73 | AL41: 352.73 | AP41: 352.73 | AQ41: London
U42: 288.18 | V42: Manchester | X42: 0.08985507246 | Y42: =U42*Z$5 -> 389.043 | AB42: =U42*(1+(U42-$U$11)/U42*$AC$5) -> 336.99575 | AF42: 429.34 | AI42: 429.34 | AL42: 429.34 | AP42: 429.34 | AQ42: London
U43: 291.89 | V43: Bolton | X43: 0.09275362319 | Y43: =U43*Z$5 -> 394.0515 | AB43: =U43*(1+(U43-$U$11)/U43*$AC$5) -> 343.73682 | AF43: 371.91 | AI43: 371.91 | AL43: 371.91 | AP43: 371.91 | AQ43: London
U44: 291.96 | V44: Manchester | X44: 0.09565217391 | Y44: =U44*Z$5 -> 394.146 | AB44: =U44*(1+(U44-$U$11)/U44*$AC$5) -> 343.86401 | AF44: 510.03 | AI44: 510.03 | AL44: 510.03 | AP44: 510.03 | AQ44: London
U45: 292.38 | V45: Rochdale | X45: 0.09855072464 | Y45: =U45*Z$5 -> 394.713 | AB45: =U45*(1+(U45-$U$11)/U45*$AC$5) -> 344.62715 | AF45: 596.99 | AI45: 596.99 | AL45: 596.99 | AP45: 596.99 | AQ45: London
U46: 293.7 | V46: Manchester | X46: 0.1014492754 | Y46: =U46*Z$5 -> 396.495 | AB46: =U46*(1+(U46-$U$11)/U46*$AC$5) -> 347.02559 | AF46: 526.42 | AI46: 526.42 | AL46: 526.42 | AP46: 526.42 | AQ46: London
U47: 295.4 | V47: Bolton | X47: 0.1043478261 | Y47: =U47*Z$5 -> 398.79 | AB47: =U47*(1+(U47-$U$11)/U47*$AC$5) -> 350.11449 | AF47: 601.76 | AI47: 601.76 | AL47: 601.76 | AP47: 601.76 | AQ47: London
U48: 296.8 | V48: Bury | X48: 0.1072463768 | Y48: =U48*Z$5 -> 400.68 | AB48: =U48*(1+(U48-$U$11)/U48*$AC$5) -> 352.65829 | AF48: 415.21 | AI48: 415.21 | AL48: 415.21 | AP48: 415.21 | AQ48: London
U49: 297.61 | V49: Manchester | X49: 0.1101449275 | Y49: =U49*Z$5 -> 401.7735 | AB49: =U49*(1+(U49-$U$11)/U49*$AC$5) -> 354.13006 | AF49: 500.15 | AI49: 500.15 | AL49: 500.15 | AP49: 500.15 | AQ49: London
U50: 298.62 | V50: Manchester | X50: 0.1130434783 | Y50: =U50*Z$5 -> 403.137 | AB50: =U50*(1+(U50-$U$11)/U50*$AC$5) -> 355.96523 | AF50: 604.29 | AI50: 604.29 | AL50: 604.29 | AP50: 604.29 | AQ50: London
U51: 301.41 | V51: Manchester | X51: 0.115942029 | Y51: =U51*Z$5 -> 406.9035 | AB51: =U51*(1+(U51-$U$11)/U51*$AC$5) -> 361.03466 | AF51: 337.77 | AI51: 337.77 | AL51: 337.77 | AP51: 337.77 | AQ51: London
U52: 302.41 | V52: Oldham | X52: 0.1188405797 | Y52: =U52*Z$5 -> 408.2535 | AB52: =U52*(1+(U52-$U$11)/U52*$AC$5) -> 362.85166 | AF52: 480.32 | AI52: 480.32 | AL52: 480.32 | AP52: 480.32 | AQ52: London
U53: 302.57 | V53: Manchester | X53: 0.1217391304 | Y53: =U53*Z$5 -> 408.4695 | AB53: =U53*(1+(U53-$U$11)/U53*$AC$5) -> 363.14238 | AF53: 469.61 | AI53: 469.61 | AL53: 469.61 | AP53: 469.61 | AQ53: London
U54: 305.48 | V54: Oldham | X54: 0.1246376812 | Y54: =U54*Z$5 -> 412.398 | AB54: =U54*(1+(U54-$U$11)/U54*$AC$5) -> 368.42985 | AF54: 392.71 | AI54: 392.71 | AL54: 392.71 | AP54: 392.71 | AQ54: London
U55: 305.74 | V55: Bolton | X55: 0.1275362319 | Y55: =U55*Z$5 -> 412.749 | AB55: =U55*(1+(U55-$U$11)/U55*$AC$5) -> 368.90227 | AF55: 459.45 | AI55: 459.45 | AL55: 459.45 | AP55: 459.45 | AQ55: London
U56: 306.27 | V56: Trafford | X56: 0.1304347826 | Y56: =U56*Z$5 -> 413.4645 | AB56: =U56*(1+(U56-$U$11)/U56*$AC$5) -> 369.86528 | AF56: 424.78 | AI56: 424.78 | AL56: 424.78 | AP56: 424.78 | AQ56: London
U57: 307.05 | V57: Oldham | X57: 0.1333333333 | Y57: =U57*Z$5 -> 414.5175 | AB57: =U57*(1+(U57-$U$11)/U57*$AC$5) -> 371.28254 | AF57: 350.36 | AI57: 350.36 | AL57: 350.36 | AP57: 350.36 | AQ57: London
U58: 307.84 | V58: Manchester | X58: 0.1362318841 | Y58: =U58*Z$5 -> 415.584 | AB58: =U58*(1+(U58-$U$11)/U58*$AC$5) -> 372.71797 | AF58: 559 | AI58: 559 | AL58: 559 | AP58: 559 | AQ58: London
U59: 308.57 | V59: Wigan | X59: 0.1391304348 | Y59: =U59*Z$5 -> 416.5695 | AB59: =U59*(1+(U59-$U$11)/U59*$AC$5) -> 374.04438 | AF59: 524.54 | AI59: 524.54 | AL59: 524.54 | AP59: 524.54 | AQ59: London
U60: 309.05 | V60: Bolton | X60: 0.1420289855 | Y60: =U60*Z$5 -> 417.2175 | AB60: =U60*(1+(U60-$U$11)/U60*$AC$5) -> 374.91654 | AF60: 456.55 | AI60: 456.55 | AL60: 456.55 | AP60: 456.55 | AQ60: London
U61: 309.34 | V61: Wigan | X61: 0.1449275362 | Y61: =U61*Z$5 -> 417.609 | AB61: =U61*(1+(U61-$U$11)/U61*$AC$5) -> 375.44347 | AF61: 525.1 | AI61: 525.1 | AL61: 525.1 | AP61: 525.1 | AQ61: London
U62: 309.53 | V62: Rochdale | X62: 0.147826087 | Y62: =U62*Z$5 -> 417.8655 | AB62: =U62*(1+(U62-$U$11)/U62*$AC$5) -> 375.7887 | AF62: 392.29 | AI62: 392.29 | AL62: 392.29 | AP62: 392.29 | AQ62: London
U63: 309.56 | V63: Bolton | X63: 0.1507246377 | Y63: =U63*Z$5 -> 417.906 | AB63: =U63*(1+(U63-$U$11)/U63*$AC$5) -> 375.84321 | AF63: 438.91 | AI63: 438.91 | AL63: 438.91 | AP63: 438.91 | AQ63: London
U64: 310.34 | V64: Oldham | X64: 0.1536231884 | Y64: =U64*Z$5 -> 418.959 | AB64: =U64*(1+(U64-$U$11)/U64*$AC$5) -> 377.26047 | AF64: 427.98 | AI64: 427.98 | AL64: 427.98 | AP64: 427.98 | AQ64: London
U65: 312.57 | V65: Tameside | X65: 0.1565217391 | Y65: =U65*Z$5 -> 421.9695 | AB65: =U65*(1+(U65-$U$11)/U65*$AC$5) -> 381.31238 | AF65: 498.59 | AI65: 498.59 | AL65: 498.59 | AP65: 498.59 | AQ65: London
U66: 314.57 | V66: Bolton | X66: 0.1594202899 | Y66: =U66*Z$5 -> 424.6695 | AB66: =U66*(1+(U66-$U$11)/U66*$AC$5) -> 384.94638 | AF66: 372.58 | AI66: 372.58 | AL66: 372.58 | AP66: 372.58 | AQ66: London
U67: 315.54 | V67: Tameside | X67: 0.1623188406 | Y67: =U67*Z$5 -> 425.979 | AB67: =U67*(1+(U67-$U$11)/U67*$AC$5) -> 386.70887 | AF67: 355.17 | AI67: 355.17 | AL67: 355.17 | AP67: 355.17 | AQ67: London
U68: 318.58 | V68: Rochdale | X68: 0.1652173913 | Y68: =U68*Z$5 -> 430.083 | AB68: =U68*(1+(U68-$U$11)/U68*$AC$5) -> 392.23255 | AF68: 417.13 | AI68: 417.13 | AL68: 417.13 | AP68: 417.13 | AQ68: London
U69: 319.53 | V69: Manchester | X69: 0.168115942 | Y69: =U69*Z$5 -> 431.3655 | AB69: =U69*(1+(U69-$U$11)/U69*$AC$5) -> 393.9587 | AF69: 341.28 | AI69: 341.28 | AL69: 341.28 | AP69: 341.28 | AQ69: London
U70: 320.08 | V70: Stockport | X70: 0.1710144928 | Y70: =U70*Z$5 -> 432.108 | AB70: =U70*(1+(U70-$U$11)/U70*$AC$5) -> 394.95805 | AF70: 540.85 | AI70: 540.85 | AL70: 540.85 | AP70: 540.85 | AQ70: London
U71: 321.39 | V71: Manchester | X71: 0.1739130435 | Y71: =U71*Z$5 -> 433.8765 | AB71: =U71*(1+(U71-$U$11)/U71*$AC$5) -> 397.33832 | AF71: 492.11 | AI71: 492.11 | AL71: 492.11 | AP71: 492.11 | AQ71: London
U72: 321.5 | V72: Rochdale | X72: 0.1768115942 | Y72: =U72*Z$5 -> 434.025 | AB72: =U72*(1+(U72-$U$11)/U72*$AC$5) -> 397.53819 | AF72: 512.7 | AI72: 512.7 | AL72: 512.7 | AP72: 512.7 | AQ72: London
U73: 321.77 | V73: Manchester | X73: 0.1797101449 | Y73: =U73*Z$5 -> 434.3895 | AB73: =U73*(1+(U73-$U$11)/U73*$AC$5) -> 398.02878 | AF73: 502.88 | AI73: 502.88 | AL73: 502.88 | AP73: 502.88 | AQ73: London
U74: 323.39 | V74: Salford | X74: 0.1826086957 | Y74: =U74*Z$5 -> 436.5765 | AB74: =U74*(1+(U74-$U$11)/U74*$AC$5) -> 400.97232 | AF74: 608.42 | AI74: 608.42 | AL74: 608.42 | AP74: 608.42 | AQ74: London
U75: 323.48 | V75: Manchester | X75: 0.1855072464 | Y75: =U75*Z$5 -> 436.698 | AB75: =U75*(1+(U75-$U$11)/U75*$AC$5) -> 401.13585 | AF75: 594.79 | AI75: 594.79 | AL75: 594.79 | AP75: 594.79 | AQ75: London
U76: 323.88 | V76: Stockport | X76: 0.1884057971 | Y76: =U76*Z$5 -> 437.238 | AB76: =U76*(1+(U76-$U$11)/U76*$AC$5) -> 401.86265 | AF76: 666.47 | AI76: =AF76 -> 666.47 | AL76: =AF76 -> 666.47 | AP76: 666.47 | AQ76: London
U77: 325.08 | V77: Oldham | X77: =X76+1/(COUNT($Y$11:$Y$356)-1) -> 0.1913043478 | Y77: =U77*Z$5 -> 438.858 | AB77: =U77*(1+(U77-$U$11)/U77*$AC$5) -> 404.04305 | AF77: 656.26 | AI77: 656.26 | AL77: 656.26 | AP77: 656.26 | AQ77: London
U78: 325.77 | V78: Salford | X78: 0.1942028986 | Y78: =U78*Z$5 -> 439.7895 | AB78: =U78*(1+(U78-$U$11)/U78*$AC$5) -> 405.29678 | AF78: 626.29 | AI78: 626.29 | AL78: 626.29 | AP78: 626.29 | AQ78: London
U79: 326.12 | V79: Manchester | X79: 0.1971014493 | Y79: =U79*Z$5 -> 440.262 | AB79: =U79*(1+(U79-$U$11)/U79*$AC$5) -> 405.93273 | AF79: 605.96 | AI79: 605.96 | AL79: 605.96 | AP79: 605.96 | AQ79: London
U80: 326.88 | V80: Tameside | X80: 0.2 | Y80: =U80*Z$5 -> 441.288 | AB80: =U80*(1+(U80-$U$11)/U80*$AC$5) -> 407.31365 | AF80: 498.39 | AI80: 498.39 | AL80: 498.39 | AP80: 498.39 | AQ80: London
U81: 328.26 | V81: Manchester | X81: 0.2028985507 | Y81: =U81*Z$5 -> 443.151 | AB81: =U81*(1+(U81-$U$11)/U81*$AC$5) -> 409.82111 | AF81: 739.45 | AI81: 739.45 | AL81: 739.45 | AP81: 739.45 | AQ81: London
U82: 328.78 | V82: Bury | X82: 0.2057971014 | Y82: =U82*Z$5 -> 443.853 | AB82: =U82*(1+(U82-$U$11)/U82*$AC$5) -> 410.76595 | AF82: 472.57 | AI82: 472.57 | AL82: 472.57 | AP82: 472.57 | AQ82: London
U83: 328.78 | V83: Salford | X83: 0.2086956522 | Y83: =U83*Z$5 -> 443.853 | AB83: =U83*(1+(U83-$U$11)/U83*$AC$5) -> 410.76595 | AF83: 528.52 | AI83: 528.52 | AL83: 528.52 | AP83: 528.52 | AQ83: London
U84: 329.49 | V84: Salford | X84: 0.2115942029 | Y84: =U84*Z$5 -> 444.8115 | AB84: =U84*(1+(U84-$U$11)/U84*$AC$5) -> 412.05602 | AF84: 615.92 | AI84: 615.92 | AL84: 615.92 | AP84: 615.92 | AQ84: London
U85: 330.51 | V85: Manchester | X85: 0.2144927536 | Y85: =U85*Z$5 -> 446.1885 | AB85: =U85*(1+(U85-$U$11)/U85*$AC$5) -> 413.90936 | AF85: 708.49 | AI85: 708.49 | AL85: 708.49 | AP85: 708.49 | AQ85: London
U86: 331.46 | V86: Bolton | X86: 0.2173913043 | Y86: =U86*Z$5 -> 447.471 | AB86: =U86*(1+(U86-$U$11)/U86*$AC$5) -> 415.63551 | AF86: 619.39 | AI86: 619.39 | AL86: 619.39 | AP86: 619.39 | AQ86: London
U87: 331.47 | V87: Manchester | X87: 0.2202898551 | Y87: =U87*Z$5 -> 447.4845 | AB87: =U87*(1+(U87-$U$11)/U87*$AC$5) -> 415.65368 | AF87: 677.07 | AI87: 677.07 | AL87: 677.07 | AP87: 677.07 | AQ87: London
U88: 331.51 | V88: Manchester | X88: 0.2231884058 | Y88: =U88*Z$5 -> 447.5385 | AB88: =U88*(1+(U88-$U$11)/U88*$AC$5) -> 415.72636 | AF88: 680.52 | AI88: 680.52 | AL88: 680.52 | AP88: 680.52 | AQ88: London
U89: 332.01 | V89: Wigan | X89: 0.2260869565 | Y89: =U89*Z$5 -> 448.2135 | AB89: =U89*(1+(U89-$U$11)/U89*$AC$5) -> 416.63486 | AF89: 819.17 | AI89: 819.17 | AL89: 819.17 | AP89: 819.17 | AQ89: London
U90: 332.13 | V90: Manchester | X90: 0.2289855072 | Y90: =U90*Z$5 -> 448.3755 | AB90: =U90*(1+(U90-$U$11)/U90*$AC$5) -> 416.8529 | AF90: 589.79 | AI90: 589.79 | AL90: 589.79 | AP90: 589.79 | AQ90: London
U91: 332.55 | V91: Rochdale | X91: 0.231884058 | Y91: =U91*Z$5 -> 448.9425 | AB91: =U91*(1+(U91-$U$11)/U91*$AC$5) -> 417.61604 | AF91: 845 | AI91: 845 | AL91: 845 | AP91: 845 | AQ91: London
U92: 334.11 | V92: Tameside | X92: 0.2347826087 | Y92: =U92*Z$5 -> 451.0485 | AB92: =U92*(1+(U92-$U$11)/U92*$AC$5) -> 420.45056 | AF92: 646.9 | AI92: 646.9 | AL92: 646.9 | AP92: 646.9 | AQ92: London
U93: 334.58 | V93: Manchester | X93: 0.2376811594 | Y93: =U93*Z$5 -> 451.683 | AB93: =U93*(1+(U93-$U$11)/U93*$AC$5) -> 421.30455 | AF93: 447.34 | AI93: 447.34 | AL93: 447.34 | AP93: 447.34 | AQ93: London
U94: 335.09 | V94: Oldham | X94: 0.2405797101 | Y94: =U94*Z$5 -> 452.3715 | AB94: =U94*(1+(U94-$U$11)/U94*$AC$5) -> 422.23122 | AF94: 312.83 | AI94: 312.83 | AL94: 312.83 | AP94: 312.83 | AQ94: London
U95: 335.66 | V95: Oldham | X95: 0.2434782609 | Y95: =U95*Z$5 -> 453.141 | AB95: =U95*(1+(U95-$U$11)/U95*$AC$5) -> 423.26691 | AF95: 520.65 | AI95: 520.65 | AL95: 520.65 | AP95: 520.65 | AQ95: London
U96: 337.19 | V96: Manchester | X96: 0.2463768116 | Y96: =U96*Z$5 -> 455.2065 | AB96: =U96*(1+(U96-$U$11)/U96*$AC$5) -> 426.04692 | AF96: 354.2 | AI96: 354.2 | AL96: 354.2 | AP96: 354.2 | AQ96: London
U97: 338.27 | V97: Salford | X97: 0.2492753623 | Y97: =U97*Z$5 -> 456.6645 | AB97: =U97*(1+(U97-$U$11)/U97*$AC$5) -> 428.00928 | AF97: 335.66 | AI97: 335.66 | AL97: 335.66 | AP97: 335.66 | AQ97: London
U98: 338.28 | V98: Manchester | X98: 0.252173913 | Y98: =U98*Z$5 -> 456.678 | AB98: =U98*(1+(U98-$U$11)/U98*$AC$5) -> 428.02745 | AF98: 440.45 | AI98: 440.45 | AL98: 440.45 | AP98: 440.45 | AQ98: London
U99: 339.07 | V99: Bolton | X99: 0.2550724638 | Y99: =U99*Z$5 -> 457.7445 | AB99: =U99*(1+(U99-$U$11)/U99*$AC$5) -> 429.46288 | AF99: 396.56 | AI99: 396.56 | AL99: 396.56 | AP99: 396.56 | AQ99: London
U100: 339.19 | V100: Oldham | X100: 0.2579710145 | Y100: =U100*Z$5 -> 457.9065 | AB100: =U100*(1+(U100-$U$11)/U100*$AC$5) -> 429.68092 | AF100: 796.14 | AI100: 796.14 | AL100: 796.14 | AP100: 796.14 | AQ100: London
U101: 340.69 | V101: Tameside | X101: 0.2608695652 | Y101: =U101*Z$5 -> 459.9315 | AB101: =U101*(1+(U101-$U$11)/U101*$AC$5) -> 432.40642 | AF101: 410.74 | AI101: 410.74 | AL101: 410.74 | AP101: 410.74 | AQ101: London
U102: 342.43 | V102: Tameside | X102: 0.2637681159 | Y102: =U102*Z$5 -> 462.2805 | AB102: =U102*(1+(U102-$U$11)/U102*$AC$5) -> 435.568 | AF102: 348.6 | AI102: 348.6 | AL102: 348.6 | AP102: 348.6 | AQ102: London
U103: 343.05 | V103: Manchester | X103: 0.2666666667 | Y103: =U103*Z$5 -> 463.1175 | AB103: =U103*(1+(U103-$U$11)/U103*$AC$5) -> 436.69454 | AF103: 337.26 | AI103: 337.26 | AL103: 337.26 | AP103: 337.26 | AQ103: London
U104: 344.29 | V104: Bury | X104: 0.2695652174 | Y104: =U104*Z$5 -> 464.7915 | AB104: =U104*(1+(U104-$U$11)/U104*$AC$5) -> 438.94762 | AF104: 359.02 | AI104: 359.02 | AL104: 359.02 | AP104: 359.02 | AQ104: London
U105: 344.92 | V105: Bury | X105: 0.2724637681 | Y105: =U105*Z$5 -> 465.642 | AB105: =U105*(1+(U105-$U$11)/U105*$AC$5) -> 440.09233 | AF105: 745.2 | AI105: 745.2 | AL105: 745.2 | AP105: 745.2 | AQ105: London
U106: 345.11 | V106: Wigan | X106: 0.2753623188 | Y106: =U106*Z$5 -> 465.8985 | AB106: =U106*(1+(U106-$U$11)/U106*$AC$5) -> 440.43756 | AF106: 375.51 | AI106: 375.51 | AL106: 375.51 | AP106: 375.51 | AQ106: London
U107: 345.82 | V107: Rochdale | X107: 0.2782608696 | Y107: =U107*Z$5 -> 466.857 | AB107: =U107*(1+(U107-$U$11)/U107*$AC$5) -> 441.72763 | AF107: 398.54 | AI107: 398.54 | AL107: 398.54 | AP107: 398.54 | AQ107: London
U108: 346.13 | V108: Rochdale | X108: 0.2811594203 | Y108: =U108*Z$5 -> 467.2755 | AB108: =U108*(1+(U108-$U$11)/U108*$AC$5) -> 442.2909 | AF108: 701.92 | AI108: 701.92 | AL108: 701.92 | AP108: 701.92 | AQ108: London
U109: 346.65 | V109: Wigan | X109: 0.284057971 | Y109: =U109*Z$5 -> 467.9775 | AB109: =U109*(1+(U109-$U$11)/U109*$AC$5) -> 443.23574 | AF109: 424.36 | AI109: 424.36 | AL109: 424.36 | AP109: 424.36 | AQ109: London
U110: 347.45 | V110: Manchester | X110: 0.2869565217 | Y110: =U110*Z$5 -> 469.0575 | AB110: =U110*(1+(U110-$U$11)/U110*$AC$5) -> 444.68934 | AF110: 435.76 | AI110: 435.76 | AL110: 435.76 | AP110: 435.76 | AQ110: London
U111: 347.73 | V111: Manchester | X111: 0.2898550725 | Y111: =U111*Z$5 -> 469.4355 | AB111: =U111*(1+(U111-$U$11)/U111*$AC$5) -> 445.1981 | AF111: 509.44 | AI111: 509.44 | AL111: 509.44 | AP111: 509.44 | AQ111: London
U112: 350.01 | V112: Bolton | X112: 0.2927536232 | Y112: =U112*Z$5 -> 472.5135 | AB112: =U112*(1+(U112-$U$11)/U112*$AC$5) -> 449.34086 | AF112: 766.1 | AI112: 766.1 | AL112: 766.1 | AP112: 766.1 | AQ112: London
U113: 350.71 | V113: Wigan | X113: 0.2956521739 | Y113: =U113*Z$5 -> 473.4585 | AB113: =U113*(1+(U113-$U$11)/U113*$AC$5) -> 450.61276 | AF113: 784.99 | AI113: 784.99 | AL113: 784.99 | AP113: 784.99 | AQ113: London
U114: 350.73 | V114: Wigan | X114: 0.2985507246 | Y114: =U114*Z$5 -> 473.4855 | AB114: =U114*(1+(U114-$U$11)/U114*$AC$5) -> 450.6491 | AF114: 484.31 | AI114: 484.31 | AL114: 484.31 | AP114: 484.31 | AQ114: London
U115: 352.38 | V115: Wigan | X115: 0.3014492754 | Y115: =U115*Z$5 -> 475.713 | AB115: =U115*(1+(U115-$U$11)/U115*$AC$5) -> 453.64715 | AF115: 379.08 | AI115: 379.08 | AL115: 379.08 | AP115: 379.08 | AQ115: London
U116: 352.58 | V116: Bolton | X116: 0.3043478261 | Y116: =U116*Z$5 -> 475.983 | AB116: =U116*(1+(U116-$U$11)/U116*$AC$5) -> 454.01055 | AF116: 358.21 | AI116: 358.21 | AL116: 358.21 | AP116: 358.21 | AQ116: London
U117: 352.77 | V117: Tameside | X117: 0.3072463768 | Y117: =U117*Z$5 -> 476.2395 | AB117: =U117*(1+(U117-$U$11)/U117*$AC$5) -> 454.35578 | AF117: 392.9 | AI117: 392.9 | AL117: 392.9 | AP117: 392.9 | AQ117: London
U118: 353.14 | V118: Manchester | X118: 0.3101449275 | Y118: =U118*Z$5 -> 476.739 | AB118: =U118*(1+(U118-$U$11)/U118*$AC$5) -> 455.02807 | AF118: 450.81 | AI118: 450.81 | AL118: 450.81 | AP118: 450.81 | AQ118: London
U119: 353.41 | V119: Salford | X119: 0.3130434783 | Y119: =U119*Z$5 -> 477.1035 | AB119: =U119*(1+(U119-$U$11)/U119*$AC$5) -> 455.51866 | AF119: 649.81 | AI119: 649.81 | AL119: 649.81 | AP119: 649.81 | AQ119: London
U120: 354.23 | V120: Bolton | X120: 0.315942029 | Y120: =U120*Z$5 -> 478.2105 | AB120: =U120*(1+(U120-$U$11)/U120*$AC$5) -> 457.0086 | AF120: 379.86 | AI120: 379.86 | AL120: 379.86 | AP120: 379.86 | AQ120: London
U121: 355.45 | V121: Wigan | X121: 0.3188405797 | Y121: =U121*Z$5 -> 479.8575 | AB121: =U121*(1+(U121-$U$11)/U121*$AC$5) -> 459.22534 | AF121: 737.8 | AI121: 737.8 | AL121: 737.8 | AP121: 737.8 | AQ121: London
U122: 355.47 | V122: Wigan | X122: 0.3217391304 | Y122: =U122*Z$5 -> 479.8845 | AB122: =U122*(1+(U122-$U$11)/U122*$AC$5) -> 459.26168 | AF122: 513.52 | AI122: 513.52 | AL122: 513.52 | AP122: 513.52 | AQ122: London
U123: 356.07 | V123: Tameside | X123: 0.3246376812 | Y123: =U123*Z$5 -> 480.6945 | AB123: =U123*(1+(U123-$U$11)/U123*$AC$5) -> 460.35188 | AF123: 376.39 | AI123: 376.39 | AL123: 376.39 | AP123: 376.39 | AQ123: London
U124: 356.18 | V124: Rochdale | X124: 0.3275362319 | Y124: =U124*Z$5 -> 480.843 | AB124: =U124*(1+(U124-$U$11)/U124*$AC$5) -> 460.55175 | AF124: 836.97 | AI124: 836.97 | AL124: 836.97 | AP124: 836.97 | AQ124: London
U125: 356.24 | V125: Stockport | X125: 0.3304347826 | Y125: =U125*Z$5 -> 480.924 | AB125: =U125*(1+(U125-$U$11)/U125*$AC$5) -> 460.66077 | AF125: 777.75 | AI125: 777.75 | AL125: 777.75 | AP125: 777.75 | AQ125: London
U126: 356.74 | V126: Trafford | X126: 0.3333333333 | Y126: =U126*Z$5 -> 481.599 | AB126: =U126*(1+(U126-$U$11)/U126*$AC$5) -> 461.56927 | AF126: 831.88 | AI126: 831.88 | AL126: 831.88 | AP126: 831.88 | AQ126: London
U127: 356.83 | V127: Salford | X127: 0.3362318841 | Y127: =U127*Z$5 -> 481.7205 | AB127: =U127*(1+(U127-$U$11)/U127*$AC$5) -> 461.7328 | AF127: 634.36 | AI127: 634.36 | AL127: 634.36 | AP127: 634.36 | AQ127: London
U128: 357.49 | V128: Oldham | X128: 0.3391304348 | Y128: =U128*Z$5 -> 482.6115 | AB128: =U128*(1+(U128-$U$11)/U128*$AC$5) -> 462.93202 | AF128: 312.92 | AI128: 312.92 | AL128: 312.92 | AP128: 312.92 | AQ128: London
U129: 357.86 | V129: Tameside | X129: 0.3420289855 | Y129: =U129*Z$5 -> 483.111 | AB129: =U129*(1+(U129-$U$11)/U129*$AC$5) -> 463.60431 | AF129: 454.95 | AI129: 454.95 | AL129: 454.95 | AP129: 454.95 | AQ129: London
U130: 359.79 | V130: Wigan | X130: 0.3449275362 | Y130: =U130*Z$5 -> 485.7165 | AB130: =U130*(1+(U130-$U$11)/U130*$AC$5) -> 467.11112 | AF130: 540.67 | AI130: 540.67 | AL130: 540.67 | AP130: 540.67 | AQ130: London
U131: 360.06 | V131: Rochdale | X131: 0.347826087 | Y131: =U131*Z$5 -> 486.081 | AB131: =U131*(1+(U131-$U$11)/U131*$AC$5) -> 467.60171 | AF131: 518.36 | AI131: 518.36 | AL131: 518.36 | AP131: 518.36 | AQ131: London
U132: 360.12 | V132: Rochdale | X132: 0.3507246377 | Y132: =U132*Z$5 -> 486.162 | AB132: =U132*(1+(U132-$U$11)/U132*$AC$5) -> 467.71073 | AF132: 508.46 | AI132: 508.46 | AL132: 508.46 | AP132: 508.46 | AQ132: London
U133: 360.48 | V133: Tameside | X133: 0.3536231884 | Y133: =U133*Z$5 -> 486.648 | AB133: =U133*(1+(U133-$U$11)/U133*$AC$5) -> 468.36485 | AF133: 375.49 | AI133: 375.49 | AL133: 375.49 | AP133: 375.49 | AQ133: London
U134: 360.52 | V134: Salford | X134: 0.3565217391 | Y134: =U134*Z$5 -> 486.702 | AB134: =U134*(1+(U134-$U$11)/U134*$AC$5) -> 468.43753 | AF134: 615.12 | AI134: 615.12 | AL134: 615.12 | AP134: 615.12 | AQ134: London
U135: 363.94 | V135: Tameside | X135: 0.3594202899 | Y135: =U135*Z$5 -> 491.319 | AB135: =U135*(1+(U135-$U$11)/U135*$AC$5) -> 474.65167 | AF135: 516.91 | AI135: 516.91 | AL135: 516.91 | AP135: 516.91 | AQ135: London
U136: 364.76 | V136: Wigan | X136: 0.3623188406 | Y136: =U136*Z$5 -> 492.426 | AB136: =U136*(1+(U136-$U$11)/U136*$AC$5) -> 476.14161 | AF136: 654.81 | AI136: 654.81 | AL136: 654.81 | AP136: 654.81 | AQ136: London
U137: 365.1 | V137: Salford | X137: 0.3652173913 | Y137: =U137*Z$5 -> 492.885 | AB137: =U137*(1+(U137-$U$11)/U137*$AC$5) -> 476.75939 | AF137: 576.24 | AI137: 576.24 | AL137: 576.24 | AP137: 576.24 | AQ137: London
U138: 365.34 | V138: Wigan | X138: 0.368115942 | Y138: =U138*Z$5 -> 493.209 | AB138: =U138*(1+(U138-$U$11)/U138*$AC$5) -> 477.19547 | AF138: 440.41 | AI138: 440.41 | AL138: 440.41 | AP138: 440.41 | AQ138: London
U139: 365.61 | V139: Oldham | X139: 0.3710144928 | Y139: =U139*Z$5 -> 493.5735 | AB139: =U139*(1+(U139-$U$11)/U139*$AC$5) -> 477.68606 | AF139: 542.7 | AI139: 542.7 | AL139: 542.7 | AP139: 542.7 | AQ139: London
U140: 365.76 | V140: Manchester | X140: 0.3739130435 | Y140: =U140*Z$5 -> 493.776 | AB140: =U140*(1+(U140-$U$11)/U140*$AC$5) -> 477.95861 | AF140: 500.24 | AI140: =AF140 -> 500.24 | AL140: =AF140 -> 500.24 | AP140: 500.24 | AQ140: London
U141: 365.93 | V141: Trafford | X141: =X140+1/(COUNT($Y$11:$Y$356)-1) -> 0.3768115942 | Y141: =U141*Z$5 -> 494.0055 | AB141: =U141*(1+(U141-$U$11)/U141*$AC$5) -> 478.2675 | AF141: 689.94 | AI141: 689.94 | AL141: 689.94 | AP141: 689.94 | AQ141: London
U142: 366.35 | V142: Bury | X142: 0.3797101449 | Y142: =U142*Z$5 -> 494.5725 | AB142: =U142*(1+(U142-$U$11)/U142*$AC$5) -> 479.03064 | AF142: 570.56 | AI142: 570.56 | AL142: 570.56 | AP142: 570.56 | AQ142: London
U143: 366.53 | V143: Manchester | X143: 0.3826086957 | Y143: =U143*Z$5 -> 494.8155 | AB143: =U143*(1+(U143-$U$11)/U143*$AC$5) -> 479.3577 | AF143: 415.88 | AI143: 415.88 | AL143: 415.88 | AP143: 415.88 | AQ143: London
U144: 366.62 | V144: Bolton | X144: 0.3855072464 | Y144: =U144*Z$5 -> 494.937 | AB144: =U144*(1+(U144-$U$11)/U144*$AC$5) -> 479.52123 | AF144: 590.19 | AI144: 590.19 | AL144: 590.19 | AP144: 590.19 | AQ144: London
U145: 367.12 | V145: Stockport | X145: 0.3884057971 | Y145: =U145*Z$5 -> 495.612 | AB145: =U145*(1+(U145-$U$11)/U145*$AC$5) -> 480.42973 | AF145: 734.12 | AI145: 734.12 | AL145: 734.12 | AP145: 734.12 | AQ145: London
U146: 367.19 | V146: Rochdale | X146: 0.3913043478 | Y146: =U146*Z$5 -> 495.7065 | AB146: =U146*(1+(U146-$U$11)/U146*$AC$5) -> 480.55692 | AF146: 537.45 | AI146: 537.45 | AL146: 537.45 | AP146: 537.45 | AQ146: London
U147: 367.44 | V147: Bury | X147: 0.3942028986 | Y147: =U147*Z$5 -> 496.044 | AB147: =U147*(1+(U147-$U$11)/U147*$AC$5) -> 481.01117 | AF147: 400.14 | AI147: 400.14 | AL147: 400.14 | AP147: 400.14 | AQ147: London
U148: 367.71 | V148: Salford | X148: 0.3971014493 | Y148: =U148*Z$5 -> 496.4085 | AB148: =U148*(1+(U148-$U$11)/U148*$AC$5) -> 481.50176 | AF148: 709.82 | AI148: 709.82 | AL148: 709.82 | AP148: 709.82 | AQ148: London
U149: 368.23 | V149: Salford | X149: 0.4 | Y149: =U149*Z$5 -> 497.1105 | AB149: =U149*(1+(U149-$U$11)/U149*$AC$5) -> 482.4466 | AF149: 554.47 | AI149: 554.47 | AL149: 554.47 | AP149: 554.47 | AQ149: London
U150: 368.38 | V150: Tameside | X150: 0.4028985507 | Y150: =U150*Z$5 -> 497.313 | AB150: =U150*(1+(U150-$U$11)/U150*$AC$5) -> 482.71915 | AF150: 534.72 | AI150: 534.72 | AL150: 534.72 | AP150: 534.72 | AQ150: London
U151: 369.13 | V151: Stockport | X151: 0.4057971014 | Y151: =U151*Z$5 -> 498.3255 | AB151: =U151*(1+(U151-$U$11)/U151*$AC$5) -> 484.0819 | AF151: 462.16 | AI151: 462.16 | AL151: 462.16 | AP151: 462.16 | AQ151: London
U152: 369.98 | V152: Salford | X152: 0.4086956522 | Y152: =U152*Z$5 -> 499.473 | AB152: =U152*(1+(U152-$U$11)/U152*$AC$5) -> 485.62635 | AF152: 361.9 | AI152: 361.9 | AL152: 361.9 | AP152: 361.9 | AQ152: London
U153: 370.7 | V153: Manchester | X153: 0.4115942029 | Y153: =U153*Z$5 -> 500.445 | AB153: =U153*(1+(U153-$U$11)/U153*$AC$5) -> 486.93459 | AF153: 397.21 | AI153: 397.21 | AL153: 397.21 | AP153: 397.21 | AQ153: London
U154: 370.74 | V154: Manchester | X154: 0.4144927536 | Y154: =U154*Z$5 -> 500.499 | AB154: =U154*(1+(U154-$U$11)/U154*$AC$5) -> 487.00727 | AF154: 516.9 | AI154: 516.9 | AL154: 516.9 | AP154: 516.9 | AQ154: London
U155: 373.07 | V155: Salford | X155: 0.4173913043 | Y155: =U155*Z$5 -> 503.6445 | AB155: =U155*(1+(U155-$U$11)/U155*$AC$5) -> 491.24088 | AF155: 498.36 | AI155: 498.36 | AL155: 498.36 | AP155: 498.36 | AQ155: London
U156: 373.8 | V156: Tameside | X156: 0.4202898551 | Y156: =U156*Z$5 -> 504.63 | AB156: =U156*(1+(U156-$U$11)/U156*$AC$5) -> 492.56729 | AF156: 392.44 | AI156: 392.44 | AL156: 392.44 | AP156: 392.44 | AQ156: London
U157: 374.82 | V157: Salford | X157: 0.4231884058 | Y157: =U157*Z$5 -> 506.007 | AB157: =U157*(1+(U157-$U$11)/U157*$AC$5) -> 494.42063 | AF157: 724.43 | AI157: 724.43 | AL157: 724.43 | AP157: 724.43 | AQ157: London
U158: 375.83 | V158: Salford | X158: 0.4260869565 | Y158: =U158*Z$5 -> 507.3705 | AB158: =U158*(1+(U158-$U$11)/U158*$AC$5) -> 496.2558 | AF158: 736.07 | AI158: 736.07 | AL158: 736.07 | AP158: 736.07 | AQ158: London
U159: 376.04 | V159: Stockport | X159: 0.4289855072 | Y159: =U159*Z$5 -> 507.654 | AB159: =U159*(1+(U159-$U$11)/U159*$AC$5) -> 496.63737 | AF159: 816.28 | AI159: 816.28 | AL159: 816.28 | AP159: 816.28 | AQ159: London
U160: 378.3 | V160: Stockport | X160: 0.431884058 | Y160: =U160*Z$5 -> 510.705 | AB160: =U160*(1+(U160-$U$11)/U160*$AC$5) -> 500.74379 | AF160: 684.57 | AI160: 684.57 | AL160: 684.57 | AP160: 684.57 | AQ160: London
U161: 378.58 | V161: Tameside | X161: 0.4347826087 | Y161: =U161*Z$5 -> 511.083 | AB161: =U161*(1+(U161-$U$11)/U161*$AC$5) -> 501.25255 | AF161: 829.22 | AI161: 829.22 | AL161: 829.22 | AP161: 829.22 | AQ161: London
U162: 378.66 | V162: Bury | X162: 0.4376811594 | Y162: =U162*Z$5 -> 511.191 | AB162: =U162*(1+(U162-$U$11)/U162*$AC$5) -> 501.39791 | AF162: 762.21 | AI162: 762.21 | AL162: 762.21 | AP162: 762.21 | AQ162: London
U163: 378.77 | V163: Tameside | X163: 0.4405797101 | Y163: =U163*Z$5 -> 511.3395 | AB163: =U163*(1+(U163-$U$11)/U163*$AC$5) -> 501.59778 | AF163: 866.29 | AI163: 866.29 | AL163: 866.29 | AP163: 866.29 | AQ163: London
U164: 379.46 | V164: Salford | X164: 0.4434782609 | Y164: =U164*Z$5 -> 512.271 | AB164: =U164*(1+(U164-$U$11)/U164*$AC$5) -> 502.85151 | AF164: 642.54 | AI164: 642.54 | AL164: 642.54 | AP164: 642.54 | AQ164: London
U165: 380.77 | V165: Salford | X165: 0.4463768116 | Y165: =U165*Z$5 -> 514.0395 | AB165: =U165*(1+(U165-$U$11)/U165*$AC$5) -> 505.23178 | AF165: 579.53 | AI165: 579.53 | AL165: 579.53 | AP165: 579.53 | AQ165: London
U166: 381.37 | V166: Stockport | X166: 0.4492753623 | Y166: =U166*Z$5 -> 514.8495 | AB166: =U166*(1+(U166-$U$11)/U166*$AC$5) -> 506.32198 | AF166: 527.78 | AI166: 527.78 | AL166: 527.78 | AP166: 527.78 | AQ166: London
U167: 382.19 | V167: Trafford | X167: 0.452173913 | Y167: =U167*Z$5 -> 515.9565 | AB167: =U167*(1+(U167-$U$11)/U167*$AC$5) -> 507.81192 | AF167: 830.82 | AI167: 830.82 | AL167: 830.82 | AP167: 830.82 | AQ167: London
U168: 382.8 | V168: Salford | X168: 0.4550724638 | Y168: =U168*Z$5 -> 516.78 | AB168: =U168*(1+(U168-$U$11)/U168*$AC$5) -> 508.92029 | AF168: 648.73 | AI168: 648.73 | AL168: 648.73 | AP168: 648.73 | AQ168: London
U169: 382.91 | V169: Tameside | X169: 0.4579710145 | Y169: =U169*Z$5 -> 516.9285 | AB169: =U169*(1+(U169-$U$11)/U169*$AC$5) -> 509.12016 | AF169: 742.04 | AI169: 742.04 | AL169: 742.04 | AP169: 742.04 | AQ169: London
U170: 383.71 | V170: Oldham | X170: 0.4608695652 | Y170: =U170*Z$5 -> 518.0085 | AB170: =U170*(1+(U170-$U$11)/U170*$AC$5) -> 510.57376 | AF170: 722.05 | AI170: 722.05 | AL170: 722.05 | AP170: 722.05 | AQ170: London
U171: 384.07 | V171: Wigan | X171: 0.4637681159 | Y171: =U171*Z$5 -> 518.4945 | AB171: =U171*(1+(U171-$U$11)/U171*$AC$5) -> 511.22788 | AF171: 760.21 | AI171: 760.21 | AL171: 760.21 | AP171: 760.21 | AQ171: London
U172: 384.93 | V172: Wigan | X172: 0.4666666667 | Y172: =U172*Z$5 -> 519.6555 | AB172: =U172*(1+(U172-$U$11)/U172*$AC$5) -> 512.7905 | AF172: 502.14 | AI172: 502.14 | AL172: 502.14 | AP172: 502.14 | AQ172: London
U173: 385.94 | V173: Bolton | X173: 0.4695652174 | Y173: =U173*Z$5 -> 521.019 | AB173: =U173*(1+(U173-$U$11)/U173*$AC$5) -> 514.62567 | AF173: 479.34 | AI173: 479.34 | AL173: 479.34 | AP173: 479.34 | AQ173: London
U174: 386.36 | V174: Wigan | X174: 0.4724637681 | Y174: =U174*Z$5 -> 521.586 | AB174: =U174*(1+(U174-$U$11)/U174*$AC$5) -> 515.38881 | AF174: 567.47 | AI174: 567.47 | AL174: 567.47 | AP174: 567.47 | AQ174: London
U175: 386.69 | V175: Bolton | X175: 0.4753623188 | Y175: =U175*Z$5 -> 522.0315 | AB175: =U175*(1+(U175-$U$11)/U175*$AC$5) -> 515.98842 | AF175: 576.42 | AI175: 576.42 | AL175: 576.42 | AP175: 576.42 | AQ175: London
U176: 387.04 | V176: Wigan | X176: 0.4782608696 | Y176: =U176*Z$5 -> 522.504 | AB176: =U176*(1+(U176-$U$11)/U176*$AC$5) -> 516.62437 | AF176: 567.39 | AI176: 567.39 | AL176: 567.39 | AP176: 567.39 | AQ176: London
U177: 387.2 | V177: Oldham | X177: 0.4811594203 | Y177: =U177*Z$5 -> 522.72 | AB177: =U177*(1+(U177-$U$11)/U177*$AC$5) -> 516.91509 | AF177: 442.83 | AI177: 442.83 | AL177: 442.83 | AP177: 442.83 | AQ177: London
U178: 387.24 | V178: Tameside | X178: 0.484057971 | Y178: =U178*Z$5 -> 522.774 | AB178: =U178*(1+(U178-$U$11)/U178*$AC$5) -> 516.98777 | AF178: 472.8 | AI178: 472.8 | AL178: 472.8 | AP178: 472.8 | AQ178: London
U179: 388.13 | V179: Tameside | X179: 0.4869565217 | Y179: =U179*Z$5 -> 523.9755 | AB179: =U179*(1+(U179-$U$11)/U179*$AC$5) -> 518.6049 | AF179: 406.9 | AI179: 406.9 | AL179: 406.9 | AP179: 406.9 | AQ179: London
U180: 388.42 | V180: Trafford | X180: 0.4898550725 | Y180: =U180*Z$5 -> 524.367 | AB180: =U180*(1+(U180-$U$11)/U180*$AC$5) -> 519.13183 | AF180: 352.37 | AI180: 352.37 | AL180: 352.37 | AP180: 352.37 | AQ180: London
U181: 390.34 | V181: Stockport | X181: 0.4927536232 | Y181: =U181*Z$5 -> 526.959 | AB181: =U181*(1+(U181-$U$11)/U181*$AC$5) -> 522.62047 | AF181: 533.43 | AI181: 533.43 | AL181: 533.43 | AP181: 533.43 | AQ181: London
U182: 391.67 | V182: Tameside | X182: 0.4956521739 | Y182: =U182*Z$5 -> 528.7545 | AB182: =U182*(1+(U182-$U$11)/U182*$AC$5) -> 525.03708 | AF182: 379.3 | AI182: 379.3 | AL182: 379.3 | AP182: 379.3 | AQ182: London
U183: 392 | V183: Bolton | X183: 0.4985507246 | Y183: =U183*Z$5 -> 529.2 | AB183: =U183*(1+(U183-$U$11)/U183*$AC$5) -> 525.63669 | AF183: 671.54 | AI183: 671.54 | AL183: 671.54 | AP183: 671.54 | AQ183: London
U184: 392.21 | V184: Oldham | X184: 0.5014492754 | Y184: =U184*Z$5 -> 529.4835 | AB184: =U184*(1+(U184-$U$11)/U184*$AC$5) -> 526.01826 | AF184: 686.66 | AI184: 686.66 | AL184: 686.66 | AP184: 686.66 | AQ184: London
U185: 392.31 | V185: Salford | X185: 0.5043478261 | Y185: =U185*Z$5 -> 529.6185 | AB185: =U185*(1+(U185-$U$11)/U185*$AC$5) -> 526.19996 | AF185: 608.02 | AI185: 608.02 | AL185: 608.02 | AP185: 608.02 | AQ185: London
U186: 392.46 | V186: Salford | X186: 0.5072463768 | Y186: =U186*Z$5 -> 529.821 | AB186: =U186*(1+(U186-$U$11)/U186*$AC$5) -> 526.47251 | AF186: 740.41 | AI186: 740.41 | AL186: 740.41 | AP186: 740.41 | AQ186: London
U187: 394.25 | V187: Wigan | X187: 0.5101449275 | Y187: =U187*Z$5 -> 532.2375 | AB187: =U187*(1+(U187-$U$11)/U187*$AC$5) -> 529.72494 | AF187: 487.43 | AI187: 487.43 | AL187: 487.43 | AP187: 487.43 | AQ187: London
U188: 395.72 | V188: Trafford | X188: 0.5130434783 | Y188: =U188*Z$5 -> 534.222 | AB188: =U188*(1+(U188-$U$11)/U188*$AC$5) -> 532.39593 | AF188: 556.64 | AI188: 556.64 | AL188: 556.64 | AP188: 556.64 | AQ188: London
U189: 396.48 | V189: Oldham | X189: 0.515942029 | Y189: =U189*Z$5 -> 535.248 | AB189: =U189*(1+(U189-$U$11)/U189*$AC$5) -> 533.77685 | AF189: 575.94 | AI189: 575.94 | AL189: 575.94 | AP189: 575.94 | AQ189: London
U190: 397.38 | V190: Oldham | X190: 0.5188405797 | Y190: =U190*Z$5 -> 536.463 | AB190: =U190*(1+(U190-$U$11)/U190*$AC$5) -> 535.41215 | AF190: 860.33 | AI190: 860.33 | AL190: 860.33 | AP190: 860.33 | AQ190: London
U191: 399.24 | V191: Bolton | X191: 0.5217391304 | Y191: =U191*Z$5 -> 538.974 | AB191: =U191*(1+(U191-$U$11)/U191*$AC$5) -> 538.79177 | AF191: 632.51 | AI191: 632.51 | AL191: 632.51 | AP191: 632.51 | AQ191: London
U192: 399.3 | V192: Salford | X192: 0.5246376812 | Y192: =U192*Z$5 -> 539.055 | AB192: =U192*(1+(U192-$U$11)/U192*$AC$5) -> 538.90079 | AF192: 489.93 | AI192: 489.93 | AL192: 489.93 | AP192: 489.93 | AQ192: London
U193: 400 | V193: Wigan | X193: 0.5275362319 | Y193: =U193*Z$5 -> 540 | AB193: =U193*(1+(U193-$U$11)/U193*$AC$5) -> 540.17269 | AF193: 415.39 | AI193: 415.39 | AL193: 415.39 | AP193: 415.39 | AQ193: London
U194: 400.01 | V194: Bury | X194: 0.5304347826 | Y194: =U194*Z$5 -> 540.0135 | AB194: =U194*(1+(U194-$U$11)/U194*$AC$5) -> 540.19086 | AF194: 738.85 | AI194: 738.85 | AL194: 738.85 | AP194: 738.85 | AQ194: London
U195: 401.45 | V195: Bolton | X195: 0.5333333333 | Y195: =U195*Z$5 -> 541.9575 | AB195: =U195*(1+(U195-$U$11)/U195*$AC$5) -> 542.80734 | AF195: 394.2 | AI195: 394.2 | AL195: 394.2 | AP195: 394.2 | AQ195: London
U196: 402.51 | V196: Stockport | X196: 0.5362318841 | Y196: =U196*Z$5 -> 543.3885 | AB196: =U196*(1+(U196-$U$11)/U196*$AC$5) -> 544.73336 | AF196: 588.55 | AI196: 588.55 | AL196: 588.55 | AP196: 588.55 | AQ196: London
U197: 402.56 | V197: Rochdale | X197: 0.5391304348 | Y197: =U197*Z$5 -> 543.456 | AB197: =U197*(1+(U197-$U$11)/U197*$AC$5) -> 544.82421 | AF197: 560.17 | AI197: 560.17 | AL197: 560.17 | AP197: 560.17 | AQ197: London
U198: 402.88 | V198: Oldham | X198: 0.5420289855 | Y198: =U198*Z$5 -> 543.888 | AB198: =U198*(1+(U198-$U$11)/U198*$AC$5) -> 545.40565 | AF198: 563.23 | AI198: 563.23 | AL198: 563.23 | AP198: 563.23 | AQ198: London
U199: 403.39 | V199: Bury | X199: 0.5449275362 | Y199: =U199*Z$5 -> 544.5765 | AB199: =U199*(1+(U199-$U$11)/U199*$AC$5) -> 546.33232 | AF199: 573.75 | AI199: 573.75 | AL199: 573.75 | AP199: 573.75 | AQ199: London
U200: 404.7 | V200: Manchester | X200: 0.547826087 | Y200: =U200*Z$5 -> 546.345 | AB200: =U200*(1+(U200-$U$11)/U200*$AC$5) -> 548.71259 | AF200: 594.04 | AI200: 594.04 | AL200: 594.04 | AP200: 594.04 | AQ200: London
U201: 404.75 | V201: Trafford | X201: 0.5507246377 | Y201: =U201*Z$5 -> 546.4125 | AB201: =U201*(1+(U201-$U$11)/U201*$AC$5) -> 548.80344 | AF201: 580.12 | AI201: 580.12 | AL201: 580.12 | AP201: 580.12 | AQ201: London
... 1138 more rows
